Cogmind - Beta 11 X8 @@@ ROGUE MODE // 2021.12.01 @ 21:15:04 Player: biogoob Result: Destroyed by G-34 Mercenary with Small Laser Performance ------------- Evolutions (0) 0 Regions Visited (1) 200 Robots Destroyed (13) 65 Value Destroyed (364) 364 Prototype IDs (2) 40 Alien Tech Used (0) 0 Bonus (0) 0 TOTAL SCORE: 669 Bonus ------- None Cogmind --------- Core Integrity 0/250 Matter 299/300 Energy 250/250 System Corruption 1% Temperature Cool (6) Movement Rolling (115) Ox1 Location -10/Materials Parts ------- > --- POWER (1) -------- Ion Engine > --- PROPULSION (2) --- Light Treads Compact Wheel > --- UTILITY (2) ------ Large Storage Unit Targeting Computer > --- WEAPON (2) ------- Light Assault Rifle > --- INVENTORY (15) --- Ion Engine Ion Engine Light Treads Compact Wheel Heat Sink Cooling System Cooling System Medium Armor Plating Medium Armor Plating Medium Armor Plating EM Pulse Gun Grenade Launcher Peak State ------------ > --- POWER ------------ Ion Engine > --- PROPULSION ------- Light Treads Compact Wheel > --- UTILITY ---------- Cooling System Large Storage Unit > --- WEAPON ----------- Medium Laser Light Assault Rifle > --- INVENTORY -------- Ion Engine Light Treads Compact Wheel Compact Wheel Heat Sink Medium Armor Plating Medium Armor Plating Medium Armor Plating Light Assault Rifle Grenade Launcher [Rating: 9] Favorites ----------- Power Ion Engine Engine Ion Engine Propulsion Light Treads Treads Light Treads Leg Aluminum Leg Wheel Compact Wheel Utility Large Storage Unit Device Heat Sink Storage Large Storage Unit Processor Targeting Computer Weapon Light Assault Rifle Energy Gun Medium Laser Ballistic Gun Light Assault Rifle Build | -11 -10 ------- Run | Scr Mat Slots Evolved . | . . Power . | . . Propulsion . | . . Utility . | . . Weapon . | . . Parts Attached 11 | . 11 Power 1 | . 1 Engine 1 | . 1 Core . | . . Reactor . | . . Propulsion 4 | . 4 Treads 1 | . 1 Leg 1 | . 1 Wheel 2 | . 2 Hover . | . . Flight . | . . Utility 4 | . 4 Device 2 | . 2 Storage 1 | . 1 Processor 1 | . 1 Hackware . | . . Protection . | . . Artifact . | . . Weapon 2 | . 2 Energy Gun . | . . Energy Cannon . | . . Ballistic Gun 2 | . 2 Ballistic Cannon . | . . Launcher . | . . Special Weapon . | . . Impact Weapon . | . . Slashing Weapon . | . . Piercing Weapon . | . . Special Melee Weapon . | . . Unidentified Prototypes . | . . Parts Lost 3 | . 3 Power . | . . Propulsion 1 | . 1 Utility . | . . Weapon 2 | . 2 Highest Loss Streak 1 | . 1 Average Slot Usage (%) 97 | . 97 Engine 14 | . 14 Treads 10 | . 10 Leg 7 | . 7 Wheel 10 | . 10 Device 9 | . 9 Storage 14 | . 14 Processor 3 | . 3 Energy Gun 8 | . 8 Ballistic Gun 18 | . 18 Naked Turns . | . . Heaviest Build 30 | 13 30 Greatest Support 20 | 20 20 Greatest Overweight (x) 9 | . 9 Average Overweight (x) . | . . Largest Inventory Capacity 15 | . 15 Average Capacity 12 | . 12 Most Carried 12 | . 12 Average Carried 9 | . 9 Final Capacity 15 | 8 15 Final Carried 12 | 6 12 Class Distribution -------------------- 100% | Mutant Dominant Class ---------------- Mutant | -10/Materials Resources | -11 -10 ----------- Run | Scr Mat Matter Collected 358 | 200 158 Remotely . | . . Salvage Created 462 | . 462 Parts 25 | . 25 Haulers Intercepted 1 | . 1 Recyclers Shooed . | . . Parts Field Recycled . | . . Retrieved Matter . | . . Parts Self-Destructed . | . . Prevented . | . . Kills | -11 -10 ------- Run | Scr Mat Combat Hostiles Destroyed 12 | . 12 Guns 12 | . 12 Classes Destroyed 3 | . 3 Hauler 1 | . 1 Swarmer 3 | . 3 Grunt 9 | . 9 Best Kill Streak 3 | . 3 Combat Bots Only 3 | . 3 Max Kills in Single Turn 1 | . 1 Gunslinging . | . . Exploded . | . . Melee . | . . Uniques/NPCs Destroyed . | . . Combat | -11 -10 -------- Run | Scr Mat Damage Taken 849 | . 849 Core 256 | . 256 Absorbed by Shields . | . . Core Remaining (%) 100 | 100 . Volleys Fired 55 | . 55 Largest 2 | . 2 Hottest 70 | . 70 Shots Fired 107 | . 107 Gun 107 | . 107 Cannon . | . . Launcher . | . . Special . | . . Kinetic 63 | . 63 Thermal 44 | . 44 Explosive . | . . Electromagnetic . | . . Robot Hit Streak 20 | . 20 Robot Miss Streak 3 | . 3 Penetration Max . | . . Secondary Targets 1 | . 1 Max Gunslinging Chain 1 | . 1 Shots Hit Robots 74 | . 74 Core Hits 27 | . 27 Critical Kills . | . . Critical Parts Destroyed . | . . Critical Strikes 3 | . 3 Burn 3 | . 3 Melee Attacks . | . . Impact . | . . Slashing . | . . Piercing . | . . Sneak Attacks . | . . Combat Hostiles . | . . Follow-up Attacks . | . . Damage Inflicted 735 | . 735 Guns 735 | . 735 Cannons . | . . Explosions . | . . Melee . | . . Ramming . | . . Kinetic 364 | . 364 Thermal 371 | . 371 Explosive . | . . Electromagnetic . | . . Impact . | . . Slashing . | . . Piercing . | . . Highest Corruption 1 | . 1 Average Corruption 1 | . 1 Corruption Purged . | . . Overload Shots . | . . Overflow Damage . | . . Projectiles . | . . Explosions . | . . Melee . | . . Knockbacks . | . . Impact . | . . Kinetic . | . . Secondary . | . . Self-Inflicted Damage . | . . Shots . | . . Rammed . | . . Targets Rammed . | . . Kicked . | . . Crushed . | . . Highest Temperature 240 | . 240 Average Temperature 64 | . 64 Received Heat Transfer 408 | . 408 Effects 2 | . 2 Interference 2 | . 2 Siege Activations . | . . Robots Corrupted . | . . Combat Hostiles . | . . Parts Fried . | . . Impact Corruptions . | . . Robots Melted . | . . Combat Hostiles . | . . Parts Melted 2 | . 2 Heat Transferred 1332 | . 1332 Parts Sabotaged . | . . Parts Stolen . | . . Parts Stripped . | . . Power Chain Reactions . | . . Missiles Intercepted . | . . Alert | -11 -10 ------- Run | Scr Mat Peak Influence 254 | . 254 Initial . | . . Average 120 | . 120 Maximum Alert Level 1 | . 1 Low Security (%) 84 | . 84 Level 1 15 | . 15 Level 2 . | . . Level 3 . | . . Level 4 . | . . Level 5 . | . . High Security . | . . Max Security . | . . Squads Dispatched 2 | . 2 Investigation 2 | . 2 Extermination . | . . Reinforcement . | . . Assault . | . . Garrison . | . . Intercept . | . . Construction Impeded . | . . Haulers Reinforced . | . . Active Scanning Responses . | . . Cargo Convoy Interrupts . | . . Stealth | -11 -10 --------- Run | Scr Mat Distress Signals . | . . Communications Jammed . | . . Distress Signals . | . . Times Spotted 21 | . 21 Peak Tracking Total 4 | . 4 Tactical Retreats 1 | . 1 Traps | -11 -10 ------- Run | Scr Mat Traps Triggered 4 | . 4 Indirectly . | . . Trap Hack Attempts . | . . Triggered . | . . Disarmed . | . . Reprogrammed . | . . Reused . | . . Traps Extracted . | . . Installed . | . . Triggered . | . . Machines | -11 -10 ---------- Run | Scr Mat Machines Disabled . | . . Max in Single Turn . | . . Machines Sabotaged . | . . Garrisons Compromised . | . . Overloaded Fab Kills . | . . Hacking | -11 -10 --------- Run | Scr Mat Machines Accessed 3 | . 3 Terminals 3 | . 3 Fabricators . | . . Repair Stations . | . . Recycling Units . | . . Scanalyzers . | . . Garrison Access . | . . Total Hacks 10 | . 10 Successful 5 | . 5 Failed 4 | . 4 Catastrophic . | . . Database Lockouts 1 | . 1 Manual 11 | . 11 Terminals 10 | . 10 Fabricators . | . . Repair Stations . | . . Recycling Units . | . . Scanalyzers . | . . Garrison Access . | . . Terminal Hacks 3 | . 3 Robot Analysis 1 | . 1 Prototype ID Bank 1 | . 1 Hauler Manifests 1 | . 1 Fabricator Hacks . | . . Repair Station Hacks . | . . Recycling Unit Hacks . | . . Scanalyzer . | . . Garrison Access Hacks . | . . Unauthorized Hacks 2 | . 2 Terminals 2 | . 2 Botnet 2 | . 2 Fabricators . | . . Repair Stations . | . . Recycling Units . | . . Scanalyzers . | . . Garrison Access . | . . Data Cores Recovered . | . . Used . | . . Hacking Detections 3 | . 3 Full Trace Events . | . . Feedback Events . | . . Feedback Blocked . | . . Robot Schematics Acquired . | . . Robots Built . | . . Authchips . | . . Time . | . . Total Robot Build Rating . | . . Part Schematics Acquired . | . . Parts Built . | . . Authchips . | . . Time . | . . Total Part Build Rating . | . . Parts Repaired . | . . Time . | . . Parts Recycled . | . . Recycled Matter . | . . Retrieved Matter . | . . Retrieved Components . | . . Parts Scanalyzed . | . . Part Schematics Acquired . | . . Parts Damaged . | . . Bothacking | -11 -10 ------------ Run | Scr Mat Used RIF Installer . | . . Robots Hacked . | . . Non-combat . | . . Combat . | . . Robot Hacks Applied . | . . Relay Couplers Released . | . . Fabnet Peak Effective % . | . . Robots Rewired . | . . Allies Hacked . | . . Hacks Repelled . | . . Allies | -11 -10 -------- Run | Scr Mat Total Allies . | . . Largest Group . | . . Highest-Rated Group . | . . Highest-Rated Ally . | . . Total Orders . | . . Ally Attacks . | . . Total Damage . | . . Kills . | . . Allies Corrupted . | . . Allies Melted . | . . Intel | -11 -10 ------- Run | Scr Mat Robot Analysis Total 1 | . 1 Derelict Logs Recovered . | . . Drone Launches . | . . Drone Recoveries . | . . Exploration | -11 -10 ------------- Run | Scr Mat Turns Passed 822 | . 822 Spaces Moved 523 | 1 522 Core 3 | . 3 Treads . | . . Legs 116 | 1 115 Wheels 404 | . 404 Hover . | . . Flight . | . . Fastest Speed 100 | 120 100 Average Speed 117 | 120 117 Slowest Speed 500 | 120 500 Overloaded Moves . | . . Propulsion Burnouts . | . . Robots Hopped . | . . Cave-ins Triggered . | . . Exploration Rate (%) 47 | 2 92 Regions Visited 1 Branch Regions . Pre-discovered Areas . | . . Known Exits Taken . | . . Unknown Exits Taken 1 | 1 . Scrap Searched . | . . Spaces Dug . | . . Terrain Destroyed . | . . Melee . | . . Projectile . | . . AOE . | . . Terrain Rammed . | . . Walls Destroyed . | . . Machines Disabled . | . . Actions | -11 -10 --------- Run | Scr Mat Total 634 | . 634 Wait 33 | . 33 Move 522 | . 522 Hop . | . . Pick Up 7 | . 7 Fast Attach 2 | . 2 Attach 2 | . 2 Detach 1 | . 1 Swap 7 | . 7 Drop 5 | . 5 Fire 55 | . 55 Melee . | . . Ram . | . . Kick . | . . Crush . | . . Escape Stasis . | . . Rewire . | . . Trap . | . . Miscellaneous . | . . Route ------- -11/Scrapyard -10/Materials (discovered 4 exits: [*Mat x3] / [*Min]) History --------- Turn | Location | Event 1 | -11/Scrapyard | Discovered new exit (range 0) 1 | -11/Scrapyard | Entered Materials 173 | -10/Materials | Discovered new exit (range 3) 296 | -10/Materials | Discovered new exit (range 8) 315 | -10/Materials | Build established: Mutant 401 | -10/Materials | Discovered new exit (range 4) 412 | -10/Materials | Discovered new exit (range 16) 447 | -10/Materials | Core integrity fell below 50% 517 | -10/Materials | Core integrity fell below 20% 597 | -10/Materials | Central database locked down 823 | -10/Materials | Destroyed by G-34 Mercenary with Small Laser Last Messages --------------- designed specifically for the S-10 Pest, giving it respectable firepower at a low weight for maintaining high flight speeds. Swarmer squads are particularly susceptible to explosives. 00597_ ALERT: Central database lockdown, local access denied. 00611_ Acquired EM Pulse Gun. 00624_ Acquired Targeting Computer. 00637_ Triggered EMP Trap. 00637_ A bubble of electromagnetic force engulfs the area. 00637_ Door malfunctions. 00637_ Terminal disabled. 00680_ A-02 Transporter destroyed. 00694_ R-06 Scavenger collects Med. Storage Unit. 00698_ R-06 Scavenger collects Weapon Shielding. 00706_ Acquired 24 matter. 00759_ Connecting with Terminal... 00807_ Triggered Alarm Trap. 00807_ An alarm sounds. 00807_ ALERT: Alarm triggered, dispatching investigation squad. 00809_ U-05 Engineer lays Concrete. 00821_ Lgt. Assault Rifle destroyed. Map ----- +----------------------------------------------------+ | | | ?????????????????????????????????????????????????? | | ????????????##########???????????????????????????? | | ########???? #???????????????????????????? | | # !#???# "" #???????????????????????????? | | # T #???# Y" #???????????????????????????? | | # ##### "" #???????????????????????????? | | # + # #???????????????????????????? | | + ## + """ #????????????????????????#### | | # ## # """ ] #????????????????????????#!! | | ######### # """ ! #????????????????????????#!! | | !######## ################???????????????????# ! | | #??????????# #???????????????????# | | #??????????# < #???????????????????# ! | | ### #### ##??????????# #???????????????????#! | | ##?# #??# #???????????# ######################## | | ####+#### #???????????# | | # #???????????# | | # ###?????????# """ """ """ | | """ """ # #?????????## g """ """ """ | | """ """ # #??????????#g """ """ """ "" | | """ """ # #??????????# "" | | # #??????????# "" | | # #??????????# """ """ """ | | #! #??????????# """ """ """ | | ###+#####% %############ @ """ """ """ | | # % % ##### | | !# ############ | | # #?????####?# u | | + ###/####????"""""?# | | # #? ????? """"" # ############# | | # #? ? #??# """"" # #???????????# | | # #? ?? #??# + w #???????????# # | | # #? ???#??# ! # #???????????# # | | ## # ??????######### #### #???????????# | | ?# # ?????????????# """# #???????????# | | ?# ###??????????????# u "# #???????????# | | ?# #????????????????# !"# #????????######### | | ?# #????????????????# < ""# #????????# | | ## #????????????????# !"# #????????# | | #?????######?????# "# ########## | | #?????# #?????# """# # ! # """ """ | | #??#### ######## #### # #??"" """ | | ###+##### + # # # #???" """ | | # # #""" + ^ # #???##### | | """"" # # #""" # T + ######### | | """"" + # #""" # # ## | | """"" # # # ! ## # ## """ | | # + # ## # ## """ | | +######## # ######### # ## """% | +----------------------------------------------------+ Best States ------------- Heat Dissipation 47 Energy Generation 10 Energy Capacity 250 Matter Stores 300 Matter Capacity 300 Sight Range 16 Terrain Scan Density 10 Evasion (%) 55 Targeting Accuracy 5 Item Schematics ----------------- None Robot Schematics ------------------ None Fabricated ------------ Nothing Alien Tech Used ----------------- None Achievements -------------- None Challenges ------------ None Game ------ Seed MakeshiftTransmissionArray Manual? 0 Play Time 00:08:24 Cumulative 85.5 hours Start 2021.12.01 @ 21:03:05 End 2021.12.01 @ 21:15:04 Sessions 1 Manual Loads 0 Difficulty Rogue Special Mode None Game No. 95 Rogue 74 Adventurer 17 Explorer 4 Win Type - Total 1 Types 0/0/1/0/0/0/0/0/0 Lore% 47 Gallery% 51 Achievement% 44 Wizard Run 0 Options --------- ASCII 1 Keyboard 1 Movement Vi Keybinds 0 Fullscreen 1 Font 14/SmallcapsGlow Map View 72x54 Tactical HUD 1 Map Filters SATURATION(80) Filters SATURATION(80) Steam 1 RUN: 06e98540-6dc4-46c0-bc40-14142cbc2d9a